[Event "Estonian Chess Championship 2025"]
[Site "Tallinn, EE"]
[Date "2025.12.11"]
[Round "1.1"]
[White "Leht, Karl Samuel"]
[Black "Volodin, Aleksandr"]
[Result "0-1"]
[Board "1"]
[TimeControl "5400+30"]
[WhiteFideId "4520840"]
[BlackFideId "4501950"]
[BlackTitle "GM"]
[WhiteElo "1825"]
[BlackElo "2471"]
[WhiteTeam "EST"]
[BlackTeam "EST"]
[WhiteClock "0:03:52"]
[BlackClock "0:28:38"]
[Variant "Standard"]

1. e4 {

[%clk 1:30:57]

}  c5 {

[%clk 1:30:57]

} 2. Nf3 {

[%clk 1:31:19]

}  d6 {

[%clk 1:31:09]

} 3. d4 {

[%clk 1:31:43]

}  cxd4 {

[%clk 1:31:09]

} 4. Nxd4 {

[%clk 1:32:05]

}  Nf6 {

[%clk 1:32:02]

} 5. Nc3 {

[%clk 1:32:25]

}  a6 {

[%clk 1:32:28]

} 6. h3 {

[%clk 1:32:49]

}  e5 {

[%clk 1:32:26]

} 7. Nb3 {

[%clk 1:33:06]

}  Be6 {

[%clk 1:29:07]

} 8. Be3 {

[%clk 1:33:18]

}  Be7 {

[%clk 1:18:40]

} 9. Qf3 {

[%clk 1:33:33]

}  Nbd7 {

[%clk 1:13:46]

} 10. g4 {

[%clk 1:33:44]

}  h6 {

[%clk 1:14:05]

} 11. O-O-O {

[%clk 1:34:02]

}  Rc8 {

[%clk 1:09:05]

} 12. Nd5 {

[%clk 1:34:13]

}  b5 {

[%clk 1:05:02]

} 13. Kb1 {

[%clk 1:34:01]

}  Bxd5 {

[%clk 1:04:14]

} 14. exd5 {

[%clk 1:34:18]

}  Nb6 {

[%clk 1:04:15]

} 15. Bxb6 {

[%clk 1:18:01]

}  Qxb6 {

[%clk 1:04:23]

} 16. h4 {

[%clk 1:16:23]

}  g6 {

[%clk 0:52:42]

} 17. h5 {

[%clk 0:55:47]

}  gxh5 {

[%clk 0:47:28]

} 18. gxh5 {

[%clk 0:55:29]

}  Rg8 {

[%clk 0:47:50]

} 19. Bh3 {

[%clk 0:54:06]

}  Rc4 {

[%clk 0:48:04]

} 20. Rhg1 {

[%clk 0:51:42]

}  Rxg1 {

[%clk 0:45:38]

} 21. Rxg1 {

[%clk 0:51:54]

}  Rf4 {

[%clk 0:46:01]

} 22. Qc3 {

[%clk 0:29:55]

}  Bd8 {

[%clk 0:43:25]

} 23. Qc8 {

[%clk 0:18:06]

}  Rxf2 {

[%clk 0:36:49]

} 24. Rg7 {

[%clk 0:10:57]

}  Qc7 {

[%clk 0:34:42]

} 25. c3 {

[%clk 0:08:45]

}  Kf8 {

[%clk 0:34:08]

} 26. Rg1 {

[%clk 0:07:45]

}  Qxc8 {

[%clk 0:31:24]

} 27. Bxc8 {

[%clk 0:07:54]

}  a5 {

[%clk 0:31:51]

} 28. Ba6 {

[%clk 0:07:44]

}  a4 {

[%clk 0:30:50]

} 29. Nc1 {

[%clk 0:07:54]

}  a3 {

[%clk 0:30:50]

} 30. Nd3 {

[%clk 0:06:27]

}  Rd2 {

[%clk 0:29:07]

} 31. Bxb5 {

[%clk 0:06:21]

}  e4 {

[%clk 0:29:21]

} 32. Kc1 {

[%clk 0:05:46]

}  Rh2 {

[%clk 0:28:13]

} 33. Nb4 {

[%clk 0:04:46]

}  Rxb2 {

[%clk 0:28:27]

} 34. Bc4 {

[%clk 0:04:47]

}  Nxh5 {

[%clk 0:27:56]

} 35. Rh1 {

[%clk 0:03:45]

}  Bg5+ {

[%clk 0:28:25]

} 36. Kd1 {

[%clk 0:03:52]

}  Rb1+ {

[%clk 0:28:38]

} 0-1

[Event "Estonian Chess Championship 2025"]
[Site "Tallinn, EE"]
[Date "2025.12.12"]
[Round "1.2"]
[White "Volodin, Aleksandr"]
[Black "Leht, Karl Samuel"]
[Result "1-0"]
[Board "1"]
[TimeControl "5400+30"]
[WhiteFideId "4501950"]
[BlackFideId "4520840"]
[WhiteTitle "GM"]
[WhiteElo "2471"]
[BlackElo "1825"]
[WhiteTeam "EST"]
[BlackTeam "EST"]
[WhiteClock "0:28:13"]
[BlackClock "0:32:20"]
[Variant "Standard"]

1. d4 {

[%clk 1:30:58]

}  d5 {

[%clk 1:30:55]

} 2. c4 {

[%clk 1:31:24]

}  c6 {

[%clk 1:31:16]

} 3. Nf3 {

[%clk 1:31:49]

}  Nf6 {

[%clk 1:31:36]

} 4. e3 {

[%clk 1:32:14]

}  Bf5 {

[%clk 1:31:50]

} 5. Nc3 {

[%clk 1:32:38]

}  e6 {

[%clk 1:32:07]

} 6. Nh4 {

[%clk 1:33:03]

}  Be4 {

[%clk 1:32:21]

} 7. f3 {

[%clk 1:33:25]

}  Bg6 {

[%clk 1:32:37]

} 8. Qb3 {

[%clk 1:33:50]

}  Qb6 {

[%clk 1:32:27]

} 9. Nxg6 {

[%clk 1:29:38]

}  hxg6 {

[%clk 1:32:39]

} 10. Be2 {

[%clk 1:18:08]

}  Bd6 {

[%clk 1:24:38]

} 11. f4 {

[%clk 1:18:30]

}  Bb4 {

[%clk 1:20:31]

} 12. Bf3 {

[%clk 1:16:18]

}  Nbd7 {

[%clk 1:08:30]

} 13. O-O {

[%clk 1:14:41]

}  Bxc3 {

[%clk 1:06:06]

} 14. bxc3 {

[%clk 1:15:01]

}  Qxb3 {

[%clk 1:04:05]

} 15. axb3 {

[%clk 1:15:26]

}  Nb6 {

[%clk 1:03:11]

} 16. Ba3 {

[%clk 1:07:29]

}  dxc4 {

[%clk 0:59:50]

} 17. Rfb1 {

[%clk 1:07:14]

}  Nfd5 {

[%clk 0:47:12]

} 18. bxc4 {

[%clk 1:06:36]

}  Nxe3 {

[%clk 0:45:12]

} 19. c5 {

[%clk 1:02:59]

}  Nc2 {

[%clk 0:45:15]

} 20. cxb6 {

[%clk 0:53:14]

}  Nxa1 {

[%clk 0:45:21]

} 21. bxa7 {

[%clk 0:53:00]

}  Rxa7 {

[%clk 0:42:32]

} 22. Bc5 {

[%clk 0:52:10]

}  Ra6 {

[%clk 0:41:04]

} 23. Rxb7 {

[%clk 0:52:18]

}  Rh7 {

[%clk 0:40:00]

} 24. Bb6 {

[%clk 0:51:33]

}  Rh6 {

[%clk 0:38:42]

} 25. Bxc6+ {

[%clk 0:49:10]

}  Kf8 {

[%clk 0:39:05]

} 26. Rb8+ {

[%clk 0:45:25]

}  Ke7 {

[%clk 0:39:28]

} 27. Bd8+ {

[%clk 0:45:08]

}  Kd6 {

[%clk 0:39:44]

} 28. Bb5 {

[%clk 0:45:37]

}  Rc6 {

[%clk 0:38:25]

} 29. c4 {

[%clk 0:40:25]

}  Nc2 {

[%clk 0:37:40]

} 30. c5+ {

[%clk 0:37:39]

}  Kd5 {

[%clk 0:37:09]

} 31. Bxc6+ {

[%clk 0:36:34]

}  Kxc6 {

[%clk 0:37:28]

} 32. Rb6+ {

[%clk 0:37:01]

}  Kd7 {

[%clk 0:37:13]

} 33. Rd6+ {

[%clk 0:37:29]

}  Kc8 {

[%clk 0:37:32]

} 34. d5 {

[%clk 0:29:21]

}  exd5 {

[%clk 0:37:10]

} 35. Bb6 {

[%clk 0:27:36]

}  Nb4 {

[%clk 0:33:20]

} 36. c6 {

[%clk 0:27:03]

}  Rh8 {

[%clk 0:32:31]

} 37. c7 {

[%clk 0:27:27]

}  Kb7 {

[%clk 0:32:14]

} 38. Rd8 {

[%clk 0:27:53]

}  Kxb6 {

[%clk 0:32:20]

} 39. c8=Q {

[%clk 0:28:13]

} 1-0

[Event "Estonian Chess Championship 2025"]
[Site "Tallinn, EE"]
[Date "2025.12.11"]
[Round "1.1"]
[White "Oim, Mikk Kaarel"]
[Black "Kanep, Meelis"]
[Result "1/2-1/2"]
[Board "2"]
[TimeControl "5400+30"]
[WhiteFideId "4514815"]
[BlackFideId "4501047"]
[BlackTitle "GM"]
[WhiteElo "2022"]
[BlackElo "2378"]
[WhiteTeam "EST"]
[BlackTeam "EST"]
[WhiteClock "0:18:03"]
[BlackClock "0:21:48"]
[Variant "Standard"]

1. e4 {

[%clk 1:30:57]

}  d6 {

[%clk 1:30:40]

} 2. d4 {

[%clk 1:31:16]

}  Nf6 {

[%clk 1:30:51]

} 3. Nc3 {

[%clk 1:31:34]

}  e5 {

[%clk 1:31:00]

} 4. Nf3 {

[%clk 1:28:00]

}  Nbd7 {

[%clk 1:29:55]

} 5. Bc4 {

[%clk 1:24:19]

}  Be7 {

[%clk 1:29:45]

} 6. O-O {

[%clk 1:17:40]

}  O-O {

[%clk 1:23:36]

} 7. h3 {

[%clk 1:16:54]

}  c6 {

[%clk 1:23:03]

} 8. dxe5 {

[%clk 1:08:17]

}  dxe5 {

[%clk 1:17:29]

} 9. a4 {

[%clk 1:05:36]

}  Qc7 {

[%clk 1:12:52]

} 10. Qe2 {

[%clk 1:02:55]

}  Nc5 {

[%clk 1:05:26]

} 11. Bg5 {

[%clk 0:53:46]

}  Ne6 {

[%clk 1:01:55]

} 12. Rad1 {

[%clk 0:49:51]

}  Nh5 {

[%clk 0:53:47]

} 13. Bxe6 {

[%clk 0:42:39]

}  Bxe6 {

[%clk 0:51:59]

} 14. Be3 {

[%clk 0:42:22]

}  g6 {

[%clk 0:42:04]

} 15. Ng5 {

[%clk 0:35:06]

}  Bxg5 {

[%clk 0:38:24]

} 16. Bxg5 {

[%clk 0:35:26]

}  f6 {

[%clk 0:35:11]

} 17. Be3 {

[%clk 0:31:48]

}  Qe7 {

[%clk 0:34:56]

} 18. b3 {

[%clk 0:27:15]

}  Qb4 {

[%clk 0:31:40]

} 19. Rd3 {

[%clk 0:24:28]

}  Rfd8 {

[%clk 0:21:37]

} 20. Rfd1 {

[%clk 0:18:03]

}  Rxd3 {

[%clk 0:21:48]

} 1/2-1/2

[Event "Estonian Chess Championship 2025"]
[Site "Tallinn, EE"]
[Date "2025.12.12"]
[Round "1.2"]
[White "Kanep, Meelis"]
[Black "Oim, Mikk Kaarel"]
[Result "1-0"]
[Board "2"]
[TimeControl "5400+30"]
[WhiteFideId "4501047"]
[BlackFideId "4514815"]
[WhiteTitle "GM"]
[WhiteElo "2378"]
[BlackElo "2022"]
[WhiteTeam "EST"]
[BlackTeam "EST"]
[WhiteClock "0:02:01"]
[BlackClock "0:05:23"]
[Variant "Standard"]

1. Nf3 {

[%clk 1:26:45]

}  Nf6 {

[%clk 1:30:45]

} 2. g3 {

[%clk 1:26:46]

}  g6 {

[%clk 1:30:58]

} 3. b3 {

[%clk 1:27:08]

}  Bg7 {

[%clk 1:24:34]

} 4. Bb2 {

[%clk 1:27:18]

}  d6 {

[%clk 1:24:44]

} 5. d4 {

[%clk 1:26:41]

}  O-O {

[%clk 1:24:12]

} 6. Bg2 {

[%clk 1:26:45]

}  a5 {

[%clk 1:11:53]

} 7. O-O {

[%clk 1:21:38]

}  Nfd7 {

[%clk 1:00:02]

} 8. c4 {

[%clk 1:14:43]

}  Nc6 {

[%clk 0:57:05]

} 9. Nc3 {

[%clk 1:10:34]

}  e5 {

[%clk 0:55:45]

} 10. dxe5 {

[%clk 1:08:34]

}  Ndxe5 {

[%clk 0:55:33]

} 11. Nxe5 {

[%clk 1:08:12]

}  Nxe5 {

[%clk 0:55:17]

} 12. Qd2 {

[%clk 1:07:44]

}  a4 {

[%clk 0:46:31]

} 13. Rad1 {

[%clk 0:54:30]

}  axb3 {

[%clk 0:38:36]

} 14. axb3 {

[%clk 0:54:37]

}  Be6 {

[%clk 0:37:20]

} 15. Ra1 {

[%clk 0:41:01]

}  Rxa1 {

[%clk 0:25:15]

} 16. Rxa1 {

[%clk 0:37:05]

}  c6 {

[%clk 0:24:34]

} 17. Qc2 {

[%clk 0:34:50]

}  Qc8 {

[%clk 0:18:09]

} 18. Rd1 {

[%clk 0:29:50]

}  Rd8 {

[%clk 0:13:46]

} 19. Qc1 {

[%clk 0:22:15]

}  Qc7 {

[%clk 0:06:10]

} 20. h3 {

[%clk 0:20:19]

}  Qb6 {

[%clk 0:04:02]

} 21. Qc2 {

[%clk 0:20:23]

}  Ra8 {

[%clk 0:03:57]

} 22. Na4 {

[%clk 0:18:42]

}  Qa5 {

[%clk 0:02:47]

} 23. Bc3 {

[%clk 0:15:41]

}  Qc7 {

[%clk 0:01:07]

} 24. f4 {

[%clk 0:13:08]

}  Nd7 {

[%clk 0:01:07]

} 25. Bxg7 {

[%clk 0:13:17]

}  Kxg7 {

[%clk 0:01:36]

} 26. e4 {

[%clk 0:09:54]

}  f5 {

[%clk 0:00:45]

} 27. exf5 {

[%clk 0:09:33]

}  Bxf5 {

[%clk 0:01:09]

} 28. Qd2 {

[%clk 0:07:57]

}  d5 {

[%clk 0:00:57]

} 29. cxd5 {

[%clk 0:08:00]

}  cxd5 {

[%clk 0:01:26]

} 30. Qd4+ {

[%clk 0:07:37]

}  Nf6 {

[%clk 0:00:45]

} 31. g4 {

[%clk 0:07:10]

}  Be4 {

[%clk 0:01:09]

} 32. g5 {

[%clk 0:05:42]

}  Qxf4 {

[%clk 0:01:38]

} 33. Qxf6+ {

[%clk 0:05:41]

}  Qxf6 {

[%clk 0:02:06]

} 34. gxf6+ {

[%clk 0:06:02]

}  Kxf6 {

[%clk 0:02:29]

} 35. Nb6 {

[%clk 0:05:47]

}  Ra2 {

[%clk 0:00:51]

} 36. Nxd5+ {

[%clk 0:05:56]

}  Bxd5 {

[%clk 0:01:00]

} 37. Rxd5 {

[%clk 0:05:59]

}  Rb2 {

[%clk 0:00:36]

} 38. Rb5 {

[%clk 0:06:15]

}  b6 {

[%clk 0:00:39]

} 39. Rxb6+ {

[%clk 0:05:49]

}  Kf5 {

[%clk 0:01:00]

} 40. b4 {

[%clk 0:18:39]

}  h5 {

[%clk 0:15:47]

} 41. b5 {

[%clk 0:11:26]

}  g5 {

[%clk 0:14:56]

} 42. Bf1 {

[%clk 0:06:30]

}  g4 {

[%clk 0:12:55]

} 43. h4 {

[%clk 0:03:15]

}  g3 {

[%clk 0:11:16]

} 44. Bh3+ {

[%clk 0:03:26]

}  Kf4 {

[%clk 0:11:03]

} 45. Rf6+ {

[%clk 0:03:40]

}  Ke3 {

[%clk 0:10:11]

} 46. Rf5 {

[%clk 0:03:06]

}  Rh2 {

[%clk 0:08:10]

} 47. Rxh5 {

[%clk 0:02:39]

}  Rxh3 {

[%clk 0:07:24]

} 48. b6 {

[%clk 0:01:54]

}  Rh2 {

[%clk 0:06:45]

} 49. Rb5 {

[%clk 0:02:16]

}  Kf3 {

[%clk 0:05:23]

} 50. Rb3+ {

[%clk 0:02:01]

} 1-0

[Event "Estonian Chess Championship 2025"]
[Site "Tallinn, EE"]
[Date "2025.12.11"]
[Round "1.1"]
[White "Maidla, Vallo"]
[Black "Medar, Marti"]
[Result "0-1"]
[Board "3"]
[TimeControl "5400+30"]
[WhiteFideId "4500296"]
[BlackFideId "4501870"]
[WhiteTitle "IM"]
[WhiteElo "2372"]
[BlackElo "2086"]
[WhiteTeam "EST"]
[BlackTeam "EST"]
[WhiteClock "0:00:51"]
[BlackClock "0:01:28"]
[Variant "Standard"]

1. e4 {

[%clk 1:30:53]

}  c5 {

[%clk 1:30:45]

} 2. Nf3 {

[%clk 1:30:59]

}  d6 {

[%clk 1:30:57]

} 3. d4 {

[%clk 1:30:42]

}  cxd4 {

[%clk 1:30:57]

} 4. Nxd4 {

[%clk 1:31:02]

}  Nf6 {

[%clk 1:31:27]

} 5. Nc3 {

[%clk 1:31:23]

}  a6 {

[%clk 1:31:20]

} 6. Be3 {

[%clk 1:31:35]

}  e6 {

[%clk 1:30:58]

} 7. Qf3 {

[%clk 1:25:47]

}  Nbd7 {

[%clk 1:27:02]

} 8. O-O-O {

[%clk 1:24:29]

}  Qc7 {

[%clk 1:25:17]

} 9. Qg3 {

[%clk 1:20:12]

}  b5 {

[%clk 1:07:47]

} 10. a3 {

[%clk 1:13:21]

}  Bb7 {

[%clk 1:01:39]

} 11. Bxb5 {

[%clk 1:11:05]

}  axb5 {

[%clk 1:02:01]

} 12. Ndxb5 {

[%clk 1:11:21]

}  Qb8 {

[%clk 0:53:31]

} 13. Rd4 {

[%clk 1:00:14]

}  Nxe4 {

[%clk 0:38:21]

} 14. Nxe4 {

[%clk 0:46:26]

}  Bxe4 {

[%clk 0:38:35]

} 15. Rb4 {

[%clk 0:36:24]

}  Bc6 {

[%clk 0:29:25]

} 16. Nd4 {

[%clk 0:28:16]

}  Qc8 {

[%clk 0:22:11]

} 17. Re1 {

[%clk 0:24:49]

}  d5 {

[%clk 0:20:10]

} 18. Bd2 {

[%clk 0:23:50]

}  Nc5 {

[%clk 0:11:56]

} 19. f3 {

[%clk 0:15:52]

}  Ba4 {

[%clk 0:11:33]

} 20. Kb1 {

[%clk 0:14:42]

}  Kd7 {

[%clk 0:08:21]

} 21. Re3 {

[%clk 0:07:55]

}  Qc7 {

[%clk 0:07:50]

} 22. Qg4 {

[%clk 0:06:42]

}  h5 {

[%clk 0:07:54]

} 23. Qh3 {

[%clk 0:03:52]

}  Be7 {

[%clk 0:06:24]

} 24. c4 {

[%clk 0:03:51]

}  Bg5 {

[%clk 0:05:52]

} 25. cxd5 {

[%clk 0:01:26]

}  Bxe3 {

[%clk 0:05:54]

} 26. dxe6+ {

[%clk 0:01:15]

}  Nxe6 {

[%clk 0:04:15]

} 27. Bxe3 {

[%clk 0:01:39]

}  Qe5 {

[%clk 0:01:36]

} 28. f4 {

[%clk 0:00:45]

}  Qe4+ {

[%clk 0:01:52]

} 29. Ka1 {

[%clk 0:00:51]

}  Ke8 {

[%clk 0:01:28]

} 0-1

[Event "Estonian Chess Championship 2025"]
[Site "Tallinn, EE"]
[Date "2025.12.12"]
[Round "1.2"]
[White "Medar, Marti"]
[Black "Maidla, Vallo"]
[Result "1/2-1/2"]
[Board "3"]
[TimeControl "5400+30"]
[WhiteFideId "4501870"]
[BlackFideId "4500296"]
[BlackTitle "IM"]
[WhiteElo "2086"]
[BlackElo "2372"]
[WhiteTeam "EST"]
[BlackTeam "EST"]
[WhiteClock "0:02:17"]
[BlackClock "0:01:35"]
[Variant "Standard"]

1. Nf3 {

[%clk 1:30:49]

}  d5 {

[%clk 1:30:27]

} 2. c4 {

[%clk 1:29:30]

}  e6 {

[%clk 1:28:33]

} 3. e3 {

[%clk 1:29:32]

}  Nf6 {

[%clk 1:28:46]

} 4. b3 {

[%clk 1:28:03]

}  b6 {

[%clk 1:27:03]

} 5. cxd5 {

[%clk 1:21:13]

}  exd5 {

[%clk 1:26:57]

} 6. Bb2 {

[%clk 1:19:08]

}  Be7 {

[%clk 1:27:01]

} 7. Nc3 {

[%clk 1:15:12]

}  O-O {

[%clk 1:27:04]

} 8. d4 {

[%clk 1:04:11]

}  a6 {

[%clk 1:15:30]

} 9. Bd3 {

[%clk 0:58:45]

}  Bg4 {

[%clk 1:12:06]

} 10. Qc2 {

[%clk 0:54:57]

}  Bxf3 {

[%clk 1:11:07]

} 11. gxf3 {

[%clk 0:55:25]

}  c5 {

[%clk 1:10:55]

} 12. Ne2 {

[%clk 0:45:55]

}  Nc6 {

[%clk 1:08:47]

} 13. a3 {

[%clk 0:45:34]

}  a5 {

[%clk 1:05:22]

} 14. Rc1 {

[%clk 0:41:12]

}  a4 {

[%clk 0:57:24]

} 15. b4 {

[%clk 0:29:46]

}  c4 {

[%clk 0:56:33]

} 16. Bf5 {

[%clk 0:29:05]

}  b5 {

[%clk 0:53:13]

} 17. Bc3 {

[%clk 0:28:35]

}  g6 {

[%clk 0:50:14]

} 18. Bh3 {

[%clk 0:28:40]

}  Re8 {

[%clk 0:49:08]

} 19. Bg2 {

[%clk 0:24:28]

}  Ra6 {

[%clk 0:42:41]

} 20. e4 {

[%clk 0:24:33]

}  Nh5 {

[%clk 0:42:07]

} 21. O-O {

[%clk 0:19:51]

}  Bg5 {

[%clk 0:34:46]

} 22. Bd2 {

[%clk 0:19:00]

}  Bxd2 {

[%clk 0:32:40]

} 23. Qxd2 {

[%clk 0:19:25]

}  dxe4 {

[%clk 0:32:30]

} 24. fxe4 {

[%clk 0:19:35]

}  Ne5 {

[%clk 0:32:47]

} 25. Rc3 {

[%clk 0:15:43]

}  Nd3 {

[%clk 0:29:50]

} 26. Rxd3 {

[%clk 0:12:45]

}  cxd3 {

[%clk 0:30:15]

} 27. Qxd3 {

[%clk 0:13:13]

}  Qd7 {

[%clk 0:26:39]

} 28. f4 {

[%clk 0:11:53]

}  Nf6 {

[%clk 0:22:21]

} 29. Nc3 {

[%clk 0:11:39]

}  Rc8 {

[%clk 0:13:59]

} 30. e5 {

[%clk 0:11:22]

}  Ng4 {

[%clk 0:13:08]

} 31. Nd5 {

[%clk 0:09:18]

}  Kg7 {

[%clk 0:10:43]

} 32. h3 {

[%clk 0:07:00]

}  Nh6 {

[%clk 0:11:08]

} 33. Nf6 {

[%clk 0:07:02]

}  Qa7 {

[%clk 0:09:45]

} 34. Rd1 {

[%clk 0:05:14]

}  Nf5 {

[%clk 0:05:57]

} 35. Be4 {

[%clk 0:05:43]

}  Nd6 {

[%clk 0:05:50]

} 36. exd6 {

[%clk 0:05:07]

}  Rxd6 {

[%clk 0:02:27]

} 37. Nd5 {

[%clk 0:04:52]

}  Rc4 {

[%clk 0:02:36]

} 38. Bg2 {

[%clk 0:04:34]

}  Qd7 {

[%clk 0:01:38]

} 39. Qe4 {

[%clk 0:03:05]

}  Re6 {

[%clk 0:01:47]

} 40. Qd3 {

[%clk 0:18:02]

}  Qc8 {

[%clk 0:16:01]

} 41. f5 {

[%clk 0:15:58]

}  gxf5 {

[%clk 0:13:42]

} 42. Qg3+ {

[%clk 0:13:32]

}  Kf8 {

[%clk 0:11:09]

} 43. Nf4 {

[%clk 0:13:31]

}  Rd6 {

[%clk 0:09:15]

} 44. Qe3 {

[%clk 0:10:50]

}  Qe8 {

[%clk 0:07:51]

} 45. Qf2 {

[%clk 0:10:29]

}  Rc3 {

[%clk 0:06:44]

} 46. Re1 {

[%clk 0:08:48]

}  Qd8 {

[%clk 0:06:31]

} 47. Kh1 {

[%clk 0:01:44]

}  Rxa3 {

[%clk 0:05:51]

} 48. d5 {

[%clk 0:02:06]

}  Rb3 {

[%clk 0:03:12]

} 49. Qd4 {

[%clk 0:02:15]

}  Kg8 {

[%clk 0:02:39]

} 50. Nh5 {

[%clk 0:01:28]

}  Rg6 {

[%clk 0:01:57]

} 51. Qe5 {

[%clk 0:01:39]

}  h6 {

[%clk 0:01:47]

} 52. Nf4 {

[%clk 0:01:12]

}  Ra6 {

[%clk 0:01:15]

} 53. Nh5 {

[%clk 0:01:05]

}  Rg6 {

[%clk 0:01:18]

} 54. Nf4 {

[%clk 0:01:31]

}  Ra6 {

[%clk 0:01:15]

} 55. Nh5 {

[%clk 0:01:50]

}  Rg6 {

[%clk 0:01:35]

} 56. Nf4 {

[%clk 0:02:17]

} 1/2-1/2

[Event "Estonian Chess Championship 2025"]
[Site "Tallinn, EE"]
[Date "2025.12.11"]
[Round "1.1"]
[White "Obolonin, Filipp"]
[Black "Chukavin, Kirill"]
[Result "0-1"]
[Board "4"]
[TimeControl "5400+30"]
[WhiteFideId "4505549"]
[BlackFideId "4503023"]
[BlackTitle "FM"]
[WhiteElo "2103"]
[BlackElo "2358"]
[WhiteTeam "EST"]
[BlackTeam "EST"]
[WhiteClock "0:46:59"]
[BlackClock "0:16:41"]
[Variant "Standard"]

1. d4 {

[%clk 1:30:55]

}  Nf6 {

[%clk 1:30:36]

} 2. Nf3 {

[%clk 1:30:57]

}  d5 {

[%clk 1:30:19]

} 3. c4 {

[%clk 1:29:48]

}  e6 {

[%clk 1:30:40]

} 4. g3 {

[%clk 1:28:52]

}  Bb4+ {

[%clk 1:25:54]

} 5. Bd2 {

[%clk 1:27:13]

}  Bd6 {

[%clk 1:26:15]

} 6. Bg2 {

[%clk 1:27:30]

}  c6 {

[%clk 1:24:46]

} 7. O-O {

[%clk 1:24:04]

}  Nbd7 {

[%clk 1:24:51]

} 8. Nc3 {

[%clk 1:23:49]

}  dxc4 {

[%clk 1:24:48]

} 9. a4 {

[%clk 1:22:50]

}  O-O {

[%clk 1:24:27]

} 10. Qc2 {

[%clk 1:21:24]

}  e5 {

[%clk 1:22:33]

} 11. Bg5 {

[%clk 1:21:19]

}  exd4 {

[%clk 1:10:42]

} 12. Nxd4 {

[%clk 1:21:22]

}  h6 {

[%clk 1:01:51]

} 13. Bxf6 {

[%clk 1:16:56]

}  Nxf6 {

[%clk 1:01:00]

} 14. Rfd1 {

[%clk 1:16:54]

}  Qe7 {

[%clk 0:57:40]

} 15. Nf5 {

[%clk 1:15:44]

}  Bxf5 {

[%clk 0:57:58]

} 16. Qxf5 {

[%clk 1:16:11]

}  Rfe8 {

[%clk 0:55:10]

} 17. e3 {

[%clk 1:16:12]

}  Be5 {

[%clk 0:52:34]

} 18. Qc2 {

[%clk 1:14:45]

}  Rad8 {

[%clk 0:38:07]

} 19. a5 {

[%clk 1:14:32]

}  Qc5 {

[%clk 0:35:14]

} 20. Ra4 {

[%clk 1:11:05]

}  Bxc3 {

[%clk 0:16:35]

} 21. Rxd8 {

[%clk 0:56:00]

}  Rxd8 {

[%clk 0:16:58]

} 22. bxc3 {

[%clk 0:52:30]

}  Ng4 {

[%clk 0:15:21]

} 23. Qe4 {

[%clk 0:49:40]

}  Rd1+ {

[%clk 0:13:03]

} 24. Bf1 {

[%clk 0:49:30]

}  Nxh2 {

[%clk 0:11:43]

} 25. Kxh2 {

[%clk 0:49:02]

}  Rxf1 {

[%clk 0:12:04]

} 26. Kg2 {

[%clk 0:49:16]

}  Rd1 {

[%clk 0:09:57]

} 27. Qe8+ {

[%clk 0:45:38]

}  Qf8 {

[%clk 0:07:15]

} 28. Qe4 {

[%clk 0:45:55]

}  Rd5 {

[%clk 0:06:18]

} 29. Qxc4 {

[%clk 0:45:52]

}  Qc5 {

[%clk 0:05:57]

} 30. Qb3 {

[%clk 0:45:31]

}  Rh5 {

[%clk 0:02:08]

} 31. e4 {

[%clk 0:40:01]

}  Qb5 {

[%clk 0:01:30]

} 32. Rb4 {

[%clk 0:40:25]

}  Qe2 {

[%clk 0:01:05]

} 33. Qb1 {

[%clk 0:38:29]

}  Rxa5 {

[%clk 0:00:39]

} 34. Rxb7 {

[%clk 0:34:52]

}  Ra2 {

[%clk 0:01:07]

} 35. Kh3 {

[%clk 0:30:31]

}  Qh5+ {

[%clk 0:01:20]

} 36. Kg2 {

[%clk 0:30:54]

}  Qe2 {

[%clk 0:01:47]

} 37. Kh3 {

[%clk 0:31:19]

}  Qxf2 {

[%clk 0:01:51]

} 38. e5 {

[%clk 0:31:29]

}  Qh2+ {

[%clk 0:00:58]

} 39. Kg4 {

[%clk 0:31:52]

}  Qe2+ {

[%clk 0:01:20]

} 40. Kf4 {

[%clk 0:46:59]

}  g5+ {

[%clk 0:16:41]

} 0-1